{"text_format":"1","workbook":"xlsx","n_sheets":3,"sheets":["AppSettings","Colors","Function Names"],"not_rendered":{"charts":0,"images":0,"macros":1,"external_links":0,"defined_names":6,"comments":0,"pivot_tables":0},"unopened":[],"bounds":{"document_bytes":16777216,"sheet_cells":100000,"rows_first":2000,"rows_last":500,"rows_between":2000,"halvings":0,"cell_chars":16384,"cell_head_chars":4096},"cells_cut":0,"cells_raw":0,"read":"whole","date_system":"1900"}

{"sheet":"AppSettings","index":0,"n_rows":11,"n_cols":5,"rows_kept":11,"cut":false,"hidden":false,"merged":[]}
["LegalNameCharacters","_\\?¤§†‡⁄…⁰¹²³⁴⁵⁶⁷⁸⁹ⁿ⁺⁻⁼₀₁₂₃₄₅₆₇₈₉ᵢᵣᵤᵥₐₑₒₓᵧᵨᵩᵪₔΑΒΓΔΕΖΗΘΙΚΛΜΝΞΟΠΡΣΤΥΦΧΨΩαβγδεζηθικλμνξοπρστυφχψωϑϕ∂∆∏∑√∞∩ℓ→↗↑↖←↙↓↘↔↕x′x″x̂x̃x̄ẋẍx̅abcdefghijklmnopqrstuvwxyz0123456789_.?\\áàâäãåæçðéèêëƒíìîïñóòôöõøœšßþúùûüýÿžϵ϶ƃΑαϐΒβΓγΔδΕεΖζΗηϴϑΘθΙιϰϗΚκΛλΜμΝνΞξΟοϖΠπϱΡρΣσΤτϒΥυϕΦφΧχΨψΩωабвгдеёжзийклмнопрстуфхцчшщъыьэюяАБВГДЕЁЖЗИЙКЛМНОПРСТУФХЦЧШЩЪЫЬЭЮЯأبجدﻫوزحطيكلمنسعفصقرشتثخذضظغאבגדהוזחטיךכלםמןנסעףפץצקרשתㄱ가강건검견경계고공구국권급기김꽥ㄴ나내녿뉴니ㄷ다담당대도동디ㄹ란력롤롱료룰름리ㄻㅁ매메모목문미밈ㅂ바박방배백번변별보본봉봐부분비뽕ㅅ사산상생서선설성세소수순쉬시식신실씨ㅇㅑㅓㅗㅜ악에여역연열영용욱원월유율으응이인일임입잉ㅈ자장재쟁적전절정조종주준지ㅊ차천철첨청체초추축출침캐투팀표품ㅎ하학한핟할함합핫항핳허호혿홀홈홉홋홍홎홏홓화회획희히.가경계관금급누단동드료리모무바반변별보비사산상선설세소수시ㅇㅣ아예오원월위이인일자재적조직집참코클투표품합험호환ᶓᵦp̂."]
["RibbonPointer","274425712"]
["FormulaCell",{"$f":"$A$1","v":"LegalNameCharacters"}]
[]
["Heading_styles",null,null,"Changes","fixed error on hard-coded number cells when sheet has no formulas"]
[1,null,null,null,"Improved performance of selecting nodes in the precedents tree"]
[2,null,null,null,"Fixed issue when running off-sheet references on a workbook with workbook protection"]
[3,null,null,null,"Fixed Mac bug (dialog keeps getting bigger)"]
[4]
["Title_Style"]
["Title"]

{"sheet":"Colors","index":1,"n_rows":7,"n_cols":10,"rows_kept":7,"cut":false,"hidden":false,"merged":[]}
[1,{"$f":"A1+7","v":8},15,22,29,36,43,50,57,64]
[2,{"$f":"A2+7","v":9},16,23,30,37,44,51,58,65]
[3,{"$f":"A3+7","v":10},17,24,31,38,45,52,59,66]
[4,{"$f":"A4+7","v":11},18,25,32,39,46,53,60,67]
[5,{"$f":"A5+7","v":12},19,26,33,40,47,54,61,68]
[6,{"$f":"A6+7","v":13},20,27,34,41,48,55,62,69]
[7,{"$f":"A7+7","v":14},21,28,35,42,49,56,63,70]

{"sheet":"Function Names","index":2,"n_rows":530,"n_cols":1,"rows_kept":530,"cut":false,"hidden":false,"merged":[]}
["ABS"]
["ACCRINT"]
["ACCRINTM"]
["ACOS"]
["ACOSH"]
["ACOT"]
["ACOTH"]
["ADDRESS"]
["AGGREGATE"]
["AMORDEGRC"]
["AMORLINC"]
["AND"]
["ARABIC"]
["AREAS"]
["ASC"]
["ASIN"]
["ASINH"]
["ATAN"]
["ATAN2"]
["ATANH"]
["AVEDEV"]
["AVERAGE"]
["AVERAGEA"]
["AVERAGEIF"]
["AVERAGEIFS"]
["BAHTTEXT"]
["BASE"]
["BESSELI"]
["BESSELJ"]
["BESSELK"]
["BESSELY"]
["BETA.DIST"]
["BETA.INV"]
["BETADIST"]
["BETAINV"]
["BIN2DEC"]
["BIN2HEX"]
["BIN2OCT"]
["BINOM.DIST"]
["BINOM.DIST.RANGE"]
["BINOM.INV"]
["BINOMDIST"]
["BITAND"]
["BITLSHIFT"]
["BITOR"]
["BITRSHIFT"]
["BITXOR"]
["BYCOL"]
["BYCOL"]
["BYROW"]
["BYROW"]
["C.QUOTIENT"]
["CEILING"]
["CEILING.MATH"]
["CEILING.PRECISE"]
["CELL"]
["CHAR"]
["CHIDIST"]
["CHIINV"]
["CHISQ.DIST"]
["CHISQ.DIST.RT"]
["CHISQ.INV"]
["CHISQ.INV.RT"]
["CHISQ.TEST"]
["CHITEST"]
["CHOOSE"]
["CHOOSECOLS"]
["CHOOSEROWS"]
["CLEAN"]
["CODE"]
["COLUMN"]
["COLUMNS"]
["COMBIN"]
["COMBINA"]
["COMPLEX"]
["CONCAT"]
["CONCATENATE"]
["CONFIDENCE"]
["CONFIDENCE.NORM"]
["CONFIDENCE.T"]
["CONVERT"]
["CORREL"]
["COS"]
["COSH"]
["COT"]
["COTH"]
["COUNT"]
["COUNTA"]
["COUNTBLANK"]
["COUNTIF"]
["COUNTIFS"]
["COUPDAYBS"]
["COUPDAYS"]
["COUPDAYSNC"]
["COUPNCD"]
["COUPNUM"]
["COUPPCD"]
["COVAR"]
["COVARIANCE.P"]
["COVARIANCE.S"]
["CRITBINOM"]
["CSC"]
["CSCH"]
["CUBEKPIMEMBER"]
["CUBEMEMBER"]
["CUBEMEMBERPROPERTY"]
["CUBERANKEDMEMBER"]
["CUBESET"]
["CUBESETCOUNT"]
["CUBEVALUE"]
["CUMIPMT"]
["CUMPRINC"]
["DATE"]
["DATEDIF"]
["DATESTRING"]
["DATEVALUE"]
["DAVERAGE"]
["DAY"]
["DAYS"]
["DAYS360"]
["DB"]
["DBCS"]
["DCOUNT"]
["DCOUNTA"]
["DDB"]
["DEC2BIN"]
["DEC2HEX"]
["DEC2OCT"]
["DECIMAL"]
["DEGREES"]
["DELTA"]
["DEVSQ"]
["DGET"]
["DISC"]
["DMAX"]
["DMIN"]
["DOLLAR"]
["DOLLARDE"]
["DOLLARFR"]
["DPRODUCT"]
["DROP"]
["DSTDEV"]
["DSTDEVP"]
["DSUM"]
["DURATION"]
["DVAR"]
["DVARP"]
["ECMA.CEILING"]
["EDATE"]
["EFFECT"]
["ENCODEURL"]
["EOMONTH"]
["ERF"]
["ERF.PRECISE"]
["ERFC"]
["ERFC.PRECISE"]
["ERROR.TYPE"]
["EVEN"]
["EXACT"]
["EXP"]
["EXPAND"]
["EXPON.DIST"]
["EXPONDIST"]
["F.DIST"]
["F.DIST.RT"]
["F.INV"]
["F.INV.RT"]
["F.TEST"]
["FACT"]
["FACTDOUBLE"]
["FALSE"]
["FALSE"]
["FDIST"]
["FIELDVALUE"]
["FILTER"]
["FILTERXML"]
["FIND"]
["FINDB"]
["FINV"]
["FISHER"]
["FISHERINV"]
["FIXED"]
["FLOOR"]
["FLOOR.MATH"]
["FLOOR.PRECISE"]
["FORECAST"]
["FORECAST.ETS"]
["FORECAST.ETS.CONFINT"]
["FORECAST.ETS.SEASONALITY"]
["FORECAST.ETS.STAT"]
["FORECAST.LINEAR"]
["FORMULATEXT"]
["FREQUENCY"]
["FTEST"]
["FV"]
["FVSCHEDULE"]
["GAMMA"]
["GAMMA.DIST"]
["GAMMA.INV"]
["GAMMADIST"]
["GAMMAINV"]
["GAMMALN"]
["GAMMALN.PRECISE"]
["GAUSS"]
["GCD"]
["GEOMEAN"]
["GESTEP"]
["GETPIVOTDATA"]
["GROUPBY"]
["GROWTH"]
["HARMEAN"]
["HEX2BIN"]
["HEX2DEC"]
["HEX2OCT"]
["HLOOKUP"]
["HOUR"]
["HSTACK"]
["HYPERLINK"]
["HYPGEOM.DIST"]
["HYPGEOMDIST"]
["IF"]
["IFERROR"]
["IFNA"]
["IFS"]
["IMABS"]
["IMAGE"]
["IMAGINARY"]
["IMARGUMENT"]
["IMCONJUGATE"]
["IMCOS"]
["IMCOSH"]
["IMCOT"]
["IMCSC"]
["IMCSCH"]
["IMDIV"]
["IMEXP"]
["IMEXP(inumber)"]
["IMLN"]
["IMLOG10"]
["IMLOG2"]
["IMPOWER"]
["IMPRODUCT"]
["IMREAL"]
["IMSEC"]
["IMSECH"]
["IMSIN"]
["IMSINH"]
["IMSQRT"]
["IMSUB"]
["IMSUM"]
["IMTAN"]
["INDEX"]
["INDIRECT"]
["INFO"]
["INT"]
["INTERCEPT"]
["INTRATE"]
["IPMT"]
["IRR"]
["ISBLANK"]
["ISERR"]
["ISERROR"]
["ISEVEN"]
["ISFORMULA"]
["ISLOGICAL"]
["ISNA"]
["ISNONTEXT"]
["ISNUMBER"]
["ISO.CEILING"]
["ISODD"]
["ISOMITTED"]
["ISOWEEKNUM"]
["ISPMT"]
["ISREF"]
["ISTEXT"]
["ISTHAIDIGIT"]
["KURT"]
["LAMBDA"]
["LARGE"]
["LCM"]
["LEFT"]
["LEFTB"]
["LEN"]
["LENB"]
["LET"]
["LINEST"]
["LN"]
["LOG"]
["LOG10"]
["LOGEST"]
["LOGINV"]
["LOGNORM.DIST"]
["LOGNORM.INV"]
["LOGNORMDIST"]
["LOOKUP"]
["LOWER"]
["MAKEARRAY"]
["MAP"]
["MATCH"]
["MAX"]
["MAXA"]
["MAXIFS"]
["MDETERM"]
["MDURATION"]
["MEDIAN"]
["MID"]
["MIDB"]
["MIN"]
["MINA"]
["MINIFS"]
["MINUTE"]
["MINVERSE"]
["MIRR"]
["MMULT"]
["MOD"]
["MODE"]
["MODE.MULT"]
["MODE.SNGL"]
["MONTH"]
["MROUND"]
["MULTINOMIAL"]
["MUNIT"]
["N"]
["NA"]
["NEGBINOM.DIST"]
["NEGBINOMDIST"]
["NETWORKDAYS"]
["NETWORKDAYS.INTL"]
["NOMINAL"]
["NORM.DIST"]
["NORM.INV"]
["NORM.S.DIST"]
["NORM.S.INV"]
["NORMDIST"]
["NORMINV"]
["NORMSDIST"]
["NORMSINV"]
["NOT"]
["NOW"]
["NPER"]
["NPV"]
["NUMBERVALUE"]
["OCT2BIN"]
["OCT2DEC"]
["OCT2HEX"]
["ODD"]
["ODDFPRICE"]
["ODDFYIELD"]
["ODDLPRICE"]
["ODDLYIELD"]
["OFFSET"]
["OR"]
["PDURATION"]
["PEARSON"]
["PERCENT OF"]
["PERCENTILE"]
["PERCENTILE.EXC"]
["PERCENTILE.INC"]
["PERCENTRANK"]
["PERCENTRANK.EXC"]
["PERCENTRANK.INC"]
["PERMUT"]
["PERMUTATIONA"]
["PHI"]
["PHONETIC"]
["PI"]
["PIVOTBY"]
["PMT"]
["POISSON"]
["POISSON.DIST"]
["POWER"]
["PPMT"]
["PRICE"]
["PRICEDISC"]
["PRICEMAT"]
["PROB"]
["PRODUCT"]
["PROPER"]
["PV"]
["PY"]
["QUARTILE"]
["QUARTILE.EXC"]
["QUARTILE.INC"]
["QUOTIENT"]
["RADIANS"]
["RAND"]
["RANDARRAY "]
["RANDBETWEEN"]
["RANK"]
["RANK.AVG"]
["RANK.EQ"]
["RATE"]
["RECEIVED"]
["REDUCE"]
["REPLACE"]
["REPLACEB"]
["REPT"]
["RIGHT"]
["RIGHTB"]
["ROMAN"]
["ROUND"]
["ROUNDBAHTDOWN"]
["ROUNDBAHTUP"]
["ROUNDDOWN"]
["ROUNDUP"]
["ROW"]
["ROWS"]
["RRI"]
["RSQ"]
["RTD"]
["SCAN"]
["SEARCH"]
["SEARCHB"]
["SEC"]
["SECH"]
["SECOND"]
["SEQUENCE "]
["SERIESSUM"]
["SHEET"]
["SHEETS"]
["SIGN"]
["SIN"]
["SINH"]
["SKEW"]
["SKEW.P"]
["SLN"]
["SLOPE"]
["SMALL"]
["SORT"]
["SORTBY "]
["SQRT"]
["SQRTPI"]
["STANDARDIZE"]
["STDEV"]
["STDEV.P"]
["STDEV.S"]
["STDEVA"]
["STDEVP"]
["STDEVPA"]
["STEYX"]
["STOCKHISTORY"]
["SUBSTITUTE"]
["SUBTOTAL"]
["SUM"]
["SUMIF"]
["SUMIFS"]
["SUMPRODUCT"]
["SUMSQ"]
["SUMX2MY2"]
["SUMX2PY2"]
["SUMXMY2"]
["SWITCH"]
["SYD"]
["T"]
["T.DIST"]
["T.DIST.2T"]
["T.DIST.RT"]
["T.INV"]
["T.INV.2T"]
["T.TEST"]
["TAKE"]
["TAN"]
["TANH"]
["TBILLEQ"]
["TBILLPRICE"]
["TBILLYIELD"]
["TDIST"]
["TEXT"]
["TEXTAFTER"]
["TEXTBEFORE"]
["TEXTJOIN"]
["TEXTSPLIT"]
["THAIDAYOFWEEK"]
["THAIDIGIT"]
["THAIMONTHOFYEAR"]
["THAINUMSOUND"]
["THAINUMSTRING"]
["THAISTRINGLENGTH"]
["THAIYEAR"]
["TIME"]
["TIMEVALUE"]
["TINV"]
["TOCOL"]
["TODAY"]
["TOROW"]
["TRANSPOSE"]
["TREND"]
["TRIM"]
["TRIMMEAN"]
["TRUE"]
["TRUE"]
["TRUNC"]
["TTEST"]
["TYPE"]
["UNICHAR"]
["UNICODE"]
["UNIQUE "]
["UPPER"]
["USDOLLAR"]
["VALUE"]
["VAR"]
["VAR.P"]
["VAR.S"]
["VARA"]
["VARP"]
["VARPA"]
["VDB"]
["VLOOKUP"]
["VSTACK"]
["WEBSERVICE"]
["WEEKDAY"]
["WEEKNUM"]
["WEIBULL"]
["WEIBULL.DIST"]
["WORKDAY"]
["WORKDAY.INTL"]
["WRAPCOLS"]
["WRAPROWS"]
["XIRR"]
["XLOOKUP"]
["XMATCH"]
["XNPV"]
["XOR"]
["YEAR"]
["YEARFRAC"]
["YIELD"]
["YIELDDISC"]
["YIELDMAT"]
["Z.TEST"]
["ZTEST"]